[Event "*** SCC Grand Prix: Titled Tuesday Blitz"]
[Site "Chess.com"]
[Date "2020.06.02"]
[Round "10"]
[White "amiralfio"]
[Black "lucachess49"]
[Result "1-0"]
[WhiteElo "2373"]
[BlackElo "2220"]
[TimeControl "180+1"]
[EndTime "11:56:53 PDT"]
[Termination "amiralfio won by checkmate"]

1. Nf3 {[%clk 0:03:00.9]} 1... Nf6 {[%clk 0:02:59]} 2. c4 {[%clk 0:03:01.8]}
2... e6 {[%clk 0:02:59]} 3. Nc3 {[%clk 0:03:02.7]} 3... d5 {[%clk 0:02:58.6]} 4.
d4 {[%clk 0:03:03.3]} 4... a6 {[%clk 0:02:56.4]} 5. cxd5 {[%clk 0:03:03.2]} 5...
exd5 {[%clk 0:02:57.3]} 6. Bg5 {[%clk 0:03:03.8]} 6... Be6 {[%clk 0:02:55.6]} 7.
e3 {[%clk 0:03:04.2]} 7... Nbd7 {[%clk 0:02:54.8]} 8. Bd3 {[%clk 0:03:04.6]}
8... Bd6 {[%clk 0:02:54.6]} 9. O-O {[%clk 0:03:05.1]} 9... O-O {[%clk
0:02:54.6]} 10. Rc1 {[%clk 0:03:06]} 10... h6 {[%clk 0:02:54]} 11. Bf4 {[%clk
0:03:06.4]} 11... Qe7 {[%clk 0:02:36.8]} 12. Re1 {[%clk 0:03:03.4]} 12... c6
{[%clk 0:02:34.1]} 13. Qd2 {[%clk 0:03:02.5]} 13... Bg4 {[%clk 0:02:30.7]} 14.
Be2 {[%clk 0:02:59.8]} 14... Bxf4 {[%clk 0:02:17]} 15. exf4 {[%clk 0:02:59.7]}
15... Bxf3 {[%clk 0:02:16.8]} 16. Bxf3 {[%clk 0:03:00.6]} 16... Qd6 {[%clk
0:02:16.3]} 17. g3 {[%clk 0:03:00.1]} 17... b5 {[%clk 0:02:10.6]} 18. Kg2 {[%clk
0:03:01]} 18... Nb6 {[%clk 0:02:09.5]} 19. b3 {[%clk 0:03:00.6]} 19... a5 {[%clk
0:02:06.8]} 20. Re5 {[%clk 0:03:01]} 20... a4 {[%clk 0:02:04.8]} 21. Rce1 {[%clk
0:03:01]} 21... axb3 {[%clk 0:02:03.7]} 22. axb3 {[%clk 0:03:01.9]} 22... Qb4
{[%clk 0:02:01.2]} 23. g4 {[%clk 0:03:00.9]} 23... Qxb3 {[%clk 0:01:58]} 24. g5
{[%clk 0:02:51]} 24... Nc4 {[%clk 0:01:51.5]} 25. Qd3 {[%clk 0:02:51.5]} 25...
Nxe5 {[%clk 0:01:44.8]} 26. fxe5 {[%clk 0:02:52.4]} 26... Ne4 {[%clk 0:01:43.8]}
27. Bxe4 {[%clk 0:02:48.1]} 27... dxe4 {[%clk 0:01:43.4]} 28. Rxe4 {[%clk
0:02:48.4]} 28... Ra3 {[%clk 0:01:35.4]} 29. Re3 {[%clk 0:02:48.8]} 29... Qc4
{[%clk 0:01:13.8]} 30. Qd2 {[%clk 0:02:37.5]} 30... hxg5 {[%clk 0:01:09.1]} 31.
Ne4 {[%clk 0:02:36.4]} 31... Ra2 {[%clk 0:01:02.3]} 32. Qd1 {[%clk 0:02:36.3]}
32... f5 {[%clk 0:00:37.4]} 33. exf6 {[%clk 0:02:35.8]} 33... gxf6 {[%clk
0:00:36.9]} 34. Qh5 {[%clk 0:02:35.9]} 34... Qf7 {[%clk 0:00:34.5]} 35. Qh6
{[%clk 0:02:34.3]} 35... Qg7 {[%clk 0:00:34]} 36. Qh5 {[%clk 0:02:32.6]} 36...
f5 {[%clk 0:00:29.8]} 37. Nxg5 {[%clk 0:02:31.1]} 37... f4 {[%clk 0:00:29.9]}
38. Re6 {[%clk 0:02:25.2]} 38... f3+ {[%clk 0:00:20.6]} 39. Kg3 {[%clk
0:02:24.5]} 39... Qc7+ {[%clk 0:00:15.5]} 40. Kh3 {[%clk 0:02:22.1]} 40... Rf7
{[%clk 0:00:11.5]} 41. Re8+ {[%clk 0:01:59.6]} 41... Kg7 {[%clk 0:00:09.3]} 42.
Ne6+ {[%clk 0:01:55.8]} 42... Kf6 {[%clk 0:00:08.2]} 43. Qg5# {[%clk 0:01:56.2]}
1-0

[Event "*** SCC Grand Prix: Titled Tuesday Blitz"]
[Site "Chess.com"]
[Date "2020.06.02"]
[Round "10"]
[White "Ba_clbaf_osed_ingo_3v21"]
[Black "jocmil"]
[Result "1/2-1/2"]
[WhiteElo "2636"]
[BlackElo "2492"]
[TimeControl "180+1"]
[EndTime "11:56:57 PDT"]
[Termination "Game drawn by repetition"]

1. Nf3 {[%clk 0:03:00.9]} 1... Nf6 {[%clk 0:02:51]} 2. c4 {[%clk 0:03:01.3]}
2... g6 {[%clk 0:02:51.4]} 3. Nc3 {[%clk 0:03:01.9]} 3... Bg7 {[%clk 0:02:52]}
4. e4 {[%clk 0:03:02.5]} 4... d6 {[%clk 0:02:52.4]} 5. d4 {[%clk 0:03:03.2]}
5... O-O {[%clk 0:02:53.1]} 6. Be2 {[%clk 0:03:03.9]} 6... e5 {[%clk 0:02:53.7]}
7. O-O {[%clk 0:03:04.8]} 7... Nc6 {[%clk 0:02:54.2]} 8. d5 {[%clk 0:03:05.4]}
8... Ne7 {[%clk 0:02:54.7]} 9. Ne1 {[%clk 0:03:06.3]} 9... Ne8 {[%clk
0:02:52.4]} 10. Nd3 {[%clk 0:03:07.2]} 10... f5 {[%clk 0:02:52.8]} 11. Bd2
{[%clk 0:03:08.1]} 11... Nf6 {[%clk 0:02:52.9]} 12. f3 {[%clk 0:03:08.3]} 12...
f4 {[%clk 0:02:52.9]} 13. c5 {[%clk 0:03:08.8]} 13... g5 {[%clk 0:02:53.1]} 14.
Rc1 {[%clk 0:03:09.3]} 14... h5 {[%clk 0:02:51.8]} 15. cxd6 {[%clk 0:03:06.4]}
15... cxd6 {[%clk 0:02:51.7]} 16. Nb5 {[%clk 0:03:07]} 16... Ne8 {[%clk
0:02:52]} 17. Qc2 {[%clk 0:03:05.7]} 17... Bd7 {[%clk 0:02:47.3]} 18. Nf2 {[%clk
0:02:59.9]} 18... a6 {[%clk 0:02:28.8]} 19. Na3 {[%clk 0:02:47.6]} 19... b5
{[%clk 0:02:25.1]} 20. Qc3 {[%clk 0:02:37.8]} 20... Ng6 {[%clk 0:02:05.5]} 21.
Qa5 {[%clk 0:02:33.7]} 21... Qb8 {[%clk 0:01:57]} 22. Nc2 {[%clk 0:02:28.9]}
22... Bf6 {[%clk 0:01:53.5]} 23. Nb4 {[%clk 0:02:26.3]} 23... Bd8 {[%clk
0:01:53.2]} 24. Qa3 {[%clk 0:02:25.7]} 24... Bb6 {[%clk 0:01:48.8]} 25. Nc6
{[%clk 0:02:25.8]} 25... Qb7 {[%clk 0:01:45.4]} 26. Ba5 {[%clk 0:02:22.8]} 26...
Be3 {[%clk 0:01:44.4]} 27. Rc3 {[%clk 0:02:19.8]} 27... g4 {[%clk 0:01:34.3]}
28. Rxe3 {[%clk 0:02:01]} 28... fxe3 {[%clk 0:01:35.2]} 29. Qxe3 {[%clk
0:02:01.3]} 29... Nf4 {[%clk 0:01:31.5]} 30. fxg4 {[%clk 0:02:01.2]} 30... Nxe2+
{[%clk 0:01:21.7]} 31. Qxe2 {[%clk 0:02:00.3]} 31... hxg4 {[%clk 0:01:20.4]} 32.
Ne7+ {[%clk 0:01:32.4]} 32... Kf7 {[%clk 0:01:12.5]} 33. Nc6 {[%clk 0:01:23.2]}
33... Kg8 {[%clk 0:01:07.1]} 34. Nd8 {[%clk 0:00:55.8]} 34... Qc8 {[%clk
0:01:01.9]} 35. Nc6 {[%clk 0:00:40.2]} 35... Qb7 {[%clk 0:00:59.8]} 1/2-1/2

[Event "*** SCC Grand Prix: Titled Tuesday Blitz"]
[Site "Chess.com"]
[Date "2020.06.02"]
[Round "10"]
[White "1f3_2g41-0"]
[Black "m-garcett"]
[Result "1-0"]
[WhiteElo "2234"]
[BlackElo "2061"]
[TimeControl "180+1"]
[EndTime "11:56:57 PDT"]
[Termination "1f3_2g41-0 won by resignation"]

1. e4 {[%clk 0:02:57.4]} 1... c5 {[%clk 0:02:58.5]} 2. Nf3 {[%clk 0:02:56.9]}
2... d6 {[%clk 0:02:48.5]} 3. d4 {[%clk 0:02:55.3]} 3... cxd4 {[%clk 0:02:49.4]}
4. Nxd4 {[%clk 0:02:54.5]} 4... Nf6 {[%clk 0:02:50]} 5. Nc3 {[%clk 0:02:52.8]}
5... a6 {[%clk 0:02:50.3]} 6. h3 {[%clk 0:02:51.2]} 6... e5 {[%clk 0:02:49.1]}
7. Nde2 {[%clk 0:02:46.5]} 7... h5 {[%clk 0:02:49]} 8. g3 {[%clk 0:02:42.7]}
8... b5 {[%clk 0:02:45]} 9. Bg2 {[%clk 0:02:41.3]} 9... Nbd7 {[%clk 0:02:42.6]}
10. Be3 {[%clk 0:02:40.4]} 10... Be7 {[%clk 0:02:40.3]} 11. O-O {[%clk
0:02:38.2]} 11... Qc7 {[%clk 0:02:38.3]} 12. a4 {[%clk 0:02:35.5]} 12... b4
{[%clk 0:02:33.3]} 13. Na2 {[%clk 0:02:34.6]} 13... a5 {[%clk 0:02:32.1]} 14. c3
{[%clk 0:02:34.8]} 14... bxc3 {[%clk 0:02:29.6]} 15. Naxc3 {[%clk 0:02:34]}
15... Ba6 {[%clk 0:02:17.5]} 16. Rc1 {[%clk 0:02:30.1]} 16... Qb7 {[%clk
0:02:10.4]} 17. Qd2 {[%clk 0:02:14.9]} 17... O-O {[%clk 0:02:07.7]} 18. Rfd1
{[%clk 0:02:13.1]} 18... Nc5 {[%clk 0:01:57.2]} 19. Bxc5 {[%clk 0:02:07.2]}
19... dxc5 {[%clk 0:01:58.1]} 20. Nd5 {[%clk 0:02:07.2]} 20... Nxd5 {[%clk
0:01:53]} 21. exd5 {[%clk 0:02:07.3]} 21... Bd6 {[%clk 0:01:51.7]} 22. Nc3
{[%clk 0:02:07.3]} 22... Rab8 {[%clk 0:01:41.4]} 23. Ne4 {[%clk 0:02:05]} 23...
Rfd8 {[%clk 0:01:41.4]} 24. Qxa5 {[%clk 0:01:57.4]} 24... Be2 {[%clk 0:01:32.5]}
25. Rd2 {[%clk 0:01:54.9]} 25... Ba6 {[%clk 0:01:14.8]} 26. Nxd6 {[%clk
0:01:53.9]} 26... Rxd6 {[%clk 0:01:14.2]} 27. Rxc5 {[%clk 0:01:53.8]} 27... Rbd8
{[%clk 0:00:35]} 28. Rc6 {[%clk 0:01:45]} 28... g6 {[%clk 0:00:18.3]} 29. b4
{[%clk 0:01:33.3]} 29... Qa8 {[%clk 0:00:04.8]} 30. b5 {[%clk 0:01:32]} 30...
Bb7 {[%clk 0:00:04.3]} 31. Qxa8 {[%clk 0:01:32.2]} 31... Bxa8 {[%clk 0:00:03.8]}
32. Rxd6 {[%clk 0:01:32.3]} 32... Rxd6 {[%clk 0:00:04.7]} 33. Rc2 {[%clk
0:01:30.4]} 33... Kf8 {[%clk 0:00:02.3]} 34. Rc8+ {[%clk 0:01:30.1]} 1-0

[Event "*** SCC Grand Prix: Titled Tuesday Blitz"]
[Site "Chess.com"]
[Date "2020.06.02"]
[Round "10"]
[White "MirMan90"]
[Black "aNaartjieZA"]
[Result "1-0"]
[WhiteElo "2721"]
[BlackElo "2580"]
[TimeControl "180+1"]
[EndTime "11:56:58 PDT"]
[Termination "MirMan90 won by checkmate"]

1. d4 {[%clk 0:03:00.9]} 1... Nf6 {[%clk 0:02:59.9]} 2. c4 {[%clk 0:03:01.2]}
2... c5 {[%clk 0:03:00]} 3. d5 {[%clk 0:03:00.7]} 3... e5 {[%clk 0:03:00.2]} 4.
Nc3 {[%clk 0:02:59.6]} 4... d6 {[%clk 0:03:00.4]} 5. e4 {[%clk 0:03:00]} 5...
Be7 {[%clk 0:03:00.7]} 6. Bd3 {[%clk 0:02:57.7]} 6... Nbd7 {[%clk 0:03:00.5]} 7.
Nf3 {[%clk 0:02:57.8]} 7... Nf8 {[%clk 0:02:59.9]} 8. h3 {[%clk 0:02:54]} 8...
Ng6 {[%clk 0:02:59.1]} 9. O-O {[%clk 0:02:53]} 9... Nh5 {[%clk 0:02:57.7]} 10.
a3 {[%clk 0:02:51.6]} 10... Nhf4 {[%clk 0:02:57.7]} 11. Bc2 {[%clk 0:02:50.7]}
11... h5 {[%clk 0:02:50.5]} 12. b4 {[%clk 0:02:45]} 12... b6 {[%clk 0:02:50.3]}
13. Ba4+ {[%clk 0:02:43.2]} 13... Kf8 {[%clk 0:02:50]} 14. bxc5 {[%clk
0:02:40.6]} 14... bxc5 {[%clk 0:02:49.8]} 15. Rb1 {[%clk 0:02:40.7]} 15... Rh6
{[%clk 0:02:45.6]} 16. Kh2 {[%clk 0:02:33.4]} 16... Rh8 {[%clk 0:02:32.5]} 17.
Bc6 {[%clk 0:02:32.1]} 17... Bd7 {[%clk 0:02:28.1]} 18. Bxa8 {[%clk 0:02:30.8]}
18... Qxa8 {[%clk 0:02:29]} 19. Ne2 {[%clk 0:02:30.4]} 19... Bf6 {[%clk
0:02:17.3]} 20. Nxf4 {[%clk 0:02:28.8]} 20... exf4 {[%clk 0:02:17]} 21. Qb3
{[%clk 0:02:26.6]} 21... Ke7 {[%clk 0:02:14.3]} 22. Qb7 {[%clk 0:02:25.7]} 22...
Qxb7 {[%clk 0:02:14.6]} 23. Rxb7 {[%clk 0:02:25.2]} 23... Ra8 {[%clk 0:02:15.1]}
24. Bb2 {[%clk 0:02:22]} 24... Bxb2 {[%clk 0:02:11.9]} 25. Rxb2 {[%clk
0:02:22.9]} 25... Bc8 {[%clk 0:02:03.9]} 26. Rfb1 {[%clk 0:02:08.1]} 26... Kd8
{[%clk 0:02:02.7]} 27. Rb8 {[%clk 0:01:54.3]} 27... Rxb8 {[%clk 0:02:01.9]} 28.
Rxb8 {[%clk 0:01:54.9]} 28... Kc7 {[%clk 0:02:02.5]} 29. Rb3 {[%clk 0:01:52.1]}
29... Ba6 {[%clk 0:02:01]} 30. Rc3 {[%clk 0:01:52.4]} 30... Bc8 {[%clk
0:01:55.6]} 31. Kg1 {[%clk 0:01:52.1]} 31... f6 {[%clk 0:01:44.6]} 32. Kf1
{[%clk 0:01:51.5]} 32... Nf8 {[%clk 0:01:43.8]} 33. Ne1 {[%clk 0:01:50.4]} 33...
Nd7 {[%clk 0:01:42.8]} 34. Nd3 {[%clk 0:01:50.2]} 34... g5 {[%clk 0:01:42.5]}
35. h4 {[%clk 0:01:49.9]} 35... Nb6 {[%clk 0:01:40.4]} 36. hxg5 {[%clk
0:01:43.9]} 36... fxg5 {[%clk 0:01:40.5]} 37. e5 {[%clk 0:01:43.5]} 37... Ba6
{[%clk 0:01:38.1]} 38. exd6+ {[%clk 0:01:38.4]} 38... Kxd6 {[%clk 0:01:37.9]}
39. Nb2 {[%clk 0:01:37.9]} 39... Ke5 {[%clk 0:01:34.5]} 40. Ke2 {[%clk
0:01:35.9]} 40... Nc8 {[%clk 0:01:31.2]} 41. Kd3 {[%clk 0:01:30.8]} 41... Nd6
{[%clk 0:01:30.2]} 42. Rc1 {[%clk 0:01:30.4]} 42... Kf5 {[%clk 0:01:24.5]} 43.
Re1 {[%clk 0:01:30]} 43... h4 {[%clk 0:01:21.7]} 44. Re6 {[%clk 0:01:28]} 44...
f3 {[%clk 0:01:19.3]} 45. gxf3 {[%clk 0:01:27]} 45... Nf7 {[%clk 0:01:18.7]} 46.
Nd1 {[%clk 0:01:09]} 46... Ne5+ {[%clk 0:01:13.5]} 47. Kc3 {[%clk 0:01:09.3]}
47... h3 {[%clk 0:01:09.1]} 48. Ne3+ {[%clk 0:01:08.2]} 48... Kf4 {[%clk
0:01:08.6]} 49. Rf6# {[%clk 0:01:08.5]} 1-0

[Event "*** SCC Grand Prix: Titled Tuesday Blitz"]
[Site "Chess.com"]
[Date "2020.06.02"]
[Round "10"]
[White "andy_rekt"]
[Black "GaboSalazar2001"]
[Result "0-1"]
[WhiteElo "2047"]
[BlackElo "2250"]
[TimeControl "180+1"]
[EndTime "11:56:58 PDT"]
[Termination "GaboSalazar2001 won by resignation"]

1. d4 {[%clk 0:02:57]} 1... c5 {[%clk 0:03:00.9]} 2. d5 {[%clk 0:02:56.5]} 2...
Nf6 {[%clk 0:03:01.1]} 3. c4 {[%clk 0:02:54.6]} 3... b5 {[%clk 0:03:00.1]} 4.
cxb5 {[%clk 0:02:53.7]} 4... a6 {[%clk 0:03:00.8]} 5. bxa6 {[%clk 0:02:52.8]}
5... Bxa6 {[%clk 0:03:01.7]} 6. Nc3 {[%clk 0:02:53.1]} 6... g6 {[%clk
0:03:01.6]} 7. e4 {[%clk 0:02:53.1]} 7... Bxf1 {[%clk 0:02:58.6]} 8. Kxf1 {[%clk
0:02:54]} 8... d6 {[%clk 0:02:59.2]} 9. g3 {[%clk 0:02:52.2]} 9... Bg7 {[%clk
0:02:59.6]} 10. Kg2 {[%clk 0:02:51.5]} 10... O-O {[%clk 0:02:59]} 11. Nf3 {[%clk
0:02:47.3]} 11... Nbd7 {[%clk 0:02:59.5]} 12. Qe2 {[%clk 0:02:40.2]} 12... Qb6
{[%clk 0:02:54.2]} 13. Nd2 {[%clk 0:02:38.9]} 13... Rfb8 {[%clk 0:02:52.3]} 14.
a4 {[%clk 0:02:35.6]} 14... Qb7 {[%clk 0:02:38.3]} 15. Nc4 {[%clk 0:02:35.1]}
15... Qa6 {[%clk 0:02:05.7]} 16. Ra3 {[%clk 0:02:28.8]} 16... Nb6 {[%clk
0:01:40.1]} 17. Nb5 {[%clk 0:02:22.3]} 17... Nxa4 {[%clk 0:01:25.2]} 18. Nc7
{[%clk 0:02:19.8]} 18... Qb7 {[%clk 0:01:12]} 19. Nxa8 {[%clk 0:02:18.7]} 19...
Rxa8 {[%clk 0:01:12.9]} 20. Rd1 {[%clk 0:02:06.8]} 20... Nd7 {[%clk 0:01:11.2]}
21. Rdd3 {[%clk 0:01:59.4]} 21... Nab6 {[%clk 0:00:42.1]} 22. Rdb3 {[%clk
0:01:29.8]} 22... Rxa3 {[%clk 0:00:40.6]} 23. bxa3 {[%clk 0:01:29.6]} 23... Qa6
{[%clk 0:00:39.3]} 24. Nxb6 {[%clk 0:01:06.6]} 24... Qxe2 {[%clk 0:00:36.4]} 25.
Nxd7 {[%clk 0:01:06.3]} 25... Qxe4+ {[%clk 0:00:36.3]} 26. f3 {[%clk 0:01:03.1]}
26... Qc2+ {[%clk 0:00:35.8]} 0-1

[Event "*** SCC Grand Prix: Titled Tuesday Blitz"]
[Site "Chess.com"]
[Date "2020.06.02"]
[Round "10"]
[White "bmt011"]
[Black "crossingthestreet"]
[Result "0-1"]
[WhiteElo "2109"]
[BlackElo "2379"]
[TimeControl "180+1"]
[EndTime "11:57:02 PDT"]
[Termination "crossingthestreet won by resignation"]

1. d4 {[%clk 0:03:00.9]} 1... Nf6 {[%clk 0:02:59.2]} 2. Bf4 {[%clk 0:03:01.3]}
2... d5 {[%clk 0:02:58.9]} 3. e3 {[%clk 0:02:59]} 3... e6 {[%clk 0:02:59.3]} 4.
Nf3 {[%clk 0:02:59.2]} 4... Bd6 {[%clk 0:02:59.9]} 5. Ne5 {[%clk 0:02:59.4]}
5... O-O {[%clk 0:02:59.1]} 6. Bd3 {[%clk 0:02:59.2]} 6... c5 {[%clk 0:02:59.4]}
7. c3 {[%clk 0:02:58.8]} 7... Nc6 {[%clk 0:02:58.4]} 8. Nd2 {[%clk 0:02:55.1]}
8... Qc7 {[%clk 0:02:56]} 9. Ndf3 {[%clk 0:02:52.4]} 9... Ne7 {[%clk 0:02:35.9]}
10. Qb1 {[%clk 0:02:46.5]} 10... Nf5 {[%clk 0:02:28]} 11. dxc5 {[%clk
0:02:32.5]} 11... Qxc5 {[%clk 0:02:26]} 12. g4 {[%clk 0:02:13.7]} 12... Ne7
{[%clk 0:02:10.3]} 13. g5 {[%clk 0:02:13.6]} 13... Ne4 {[%clk 0:02:10.3]} 14.
Bxe4 {[%clk 0:02:13.2]} 14... dxe4 {[%clk 0:02:10.9]} 15. Qxe4 {[%clk
0:02:13.3]} 15... Nd5 {[%clk 0:01:49.5]} 16. Nd3 {[%clk 0:02:06.7]} 16... Qc7
{[%clk 0:01:41.3]} 17. Bxd6 {[%clk 0:02:05.6]} 17... Qxd6 {[%clk 0:01:42.2]} 18.
O-O-O {[%clk 0:01:57]} 18... Qa6 {[%clk 0:01:42.2]} 19. Kb1 {[%clk 0:01:53.7]}
19... Bd7 {[%clk 0:01:42.8]} 20. Nc5 {[%clk 0:01:53.1]} 20... Qb5 {[%clk
0:01:34.9]} 21. Nxd7 {[%clk 0:01:52.8]} 21... Nxc3+ {[%clk 0:01:34.2]} 22. Ka1
{[%clk 0:01:46.6]} 22... Nxe4 {[%clk 0:01:34.6]} 23. Nxf8 {[%clk 0:01:45.3]}
23... Rxf8 {[%clk 0:01:35.5]} 24. Nd4 {[%clk 0:01:42.6]} 24... Qxg5 {[%clk
0:01:30.7]} 25. Rhg1 {[%clk 0:01:42.2]} 25... Qa5 {[%clk 0:01:29.6]} 26. Rg2
{[%clk 0:01:39.3]} 26... Rc8 {[%clk 0:01:28.2]} 27. Rdg1 {[%clk 0:01:39.7]}
27... g6 {[%clk 0:01:27.8]} 28. h4 {[%clk 0:01:40.2]} 28... Qd2 {[%clk
0:01:21.8]} 29. Nb3 {[%clk 0:01:17.3]} 29... Qb4 {[%clk 0:01:19.4]} 30. f3
{[%clk 0:01:13.8]} 30... Nc5 {[%clk 0:01:15.6]} 31. Nd4 {[%clk 0:01:05]} 31...
Nd3 {[%clk 0:01:11.2]} 32. h5 {[%clk 0:01:00]} 32... e5 {[%clk 0:01:06.7]} 33.
Nb3 {[%clk 0:00:59.2]} 33... a5 {[%clk 0:01:04.1]} 34. hxg6 {[%clk 0:00:58.9]}
34... hxg6 {[%clk 0:01:04]} 35. Rd2 {[%clk 0:00:54.2]} 35... a4 {[%clk
0:00:51.8]} 36. Rxd3 {[%clk 0:00:47.8]} 36... axb3 {[%clk 0:00:52.1]} 37. Rxb3
{[%clk 0:00:48.4]} 37... Qd2 {[%clk 0:00:51.3]} 0-1

[Event "*** SCC Grand Prix: Titled Tuesday Blitz"]
[Site "Chess.com"]
[Date "2020.06.02"]
[Round "10"]
[White "DenLaz"]
[Black "ChristopherYoo"]
[Result "0-1"]
[WhiteElo "2631"]
[BlackElo "2814"]
[TimeControl "180+1"]
[EndTime "11:57:03 PDT"]
[Termination "ChristopherYoo won by resignation"]

1. d4 {[%clk 0:02:58.7]} 1... Nf6 {[%clk 0:02:58.4]} 2. c4 {[%clk 0:02:57.9]}
2... g6 {[%clk 0:02:58.6]} 3. g3 {[%clk 0:02:56.4]} 3... Bg7 {[%clk 0:02:48.1]}
4. Bg2 {[%clk 0:02:55.7]} 4... Nc6 {[%clk 0:02:44.4]} 5. Nf3 {[%clk 0:02:52.8]}
5... O-O {[%clk 0:02:41.1]} 6. O-O {[%clk 0:02:51.2]} 6... d5 {[%clk 0:02:40.8]}
7. cxd5 {[%clk 0:02:50.2]} 7... Nxd5 {[%clk 0:02:40.6]} 8. Nc3 {[%clk
0:02:50.7]} 8... e5 {[%clk 0:02:40.4]} 9. Bg5 {[%clk 0:02:37.2]} 9... f6 {[%clk
0:02:38.7]} 10. Bc1 {[%clk 0:02:37.6]} 10... Nxc3 {[%clk 0:02:37.7]} 11. bxc3
{[%clk 0:02:36.4]} 11... e4 {[%clk 0:02:37.8]} 12. Nd2 {[%clk 0:02:36.2]} 12...
f5 {[%clk 0:02:38.1]} 13. e3 {[%clk 0:02:35.8]} 13... b6 {[%clk 0:02:27]} 14. f3
{[%clk 0:02:32.2]} 14... exf3 {[%clk 0:02:24.3]} 15. Nxf3 {[%clk 0:02:27]} 15...
Na5 {[%clk 0:02:10.1]} 16. Bd2 {[%clk 0:02:11.8]} 16... Bb7 {[%clk 0:02:07.2]}
17. Qe2 {[%clk 0:02:05.5]} 17... Bd5 {[%clk 0:02:04.1]} 18. Rfe1 {[%clk
0:02:04.6]} 18... Re8 {[%clk 0:02:02.6]} 19. Qf2 {[%clk 0:02:04.2]} 19... Nc4
{[%clk 0:02:01.6]} 20. Rad1 {[%clk 0:02:00.7]} 20... Nb2 {[%clk 0:01:59.9]} 21.
Bc1 {[%clk 0:01:54.2]} 21... Nxd1 {[%clk 0:01:59.5]} 22. Rxd1 {[%clk 0:01:55.1]}
22... Qe7 {[%clk 0:01:53.9]} 23. Re1 {[%clk 0:01:36.7]} 23... Rad8 {[%clk
0:01:51.6]} 24. Nd2 {[%clk 0:01:32.2]} 24... Bxg2 {[%clk 0:01:42.4]} 25. Kxg2
{[%clk 0:01:33.1]} 25... c5 {[%clk 0:01:42.3]} 26. Nf3 {[%clk 0:01:31.9]} 26...
Bf6 {[%clk 0:01:38]} 27. Bb2 {[%clk 0:01:23.9]} 27... Qe4 {[%clk 0:01:36.2]} 28.
Kg1 {[%clk 0:01:23.8]} 28... Re7 {[%clk 0:01:35.8]} 29. Nd2 {[%clk 0:01:19.1]}
29... Qc2 {[%clk 0:01:32.9]} 30. Nf1 {[%clk 0:01:17.8]} 30... Qxf2+ {[%clk
0:01:31.5]} 31. Kxf2 {[%clk 0:01:18.7]} 31... cxd4 {[%clk 0:01:30.3]} 32. exd4
{[%clk 0:01:17.4]} 32... Rxe1 {[%clk 0:01:29.4]} 33. Kxe1 {[%clk 0:01:18.3]}
33... Bg5 {[%clk 0:01:29.4]} 34. h4 {[%clk 0:01:05.9]} 34... Bh6 {[%clk
0:01:28.9]} 35. Kf2 {[%clk 0:01:06]} 35... Kf7 {[%clk 0:01:26.3]} 36. Nh2 {[%clk
0:01:06.3]} 36... b5 {[%clk 0:01:22.7]} 37. Nf3 {[%clk 0:01:06.7]} 37... Ke6
{[%clk 0:01:22.9]} 38. Ba3 {[%clk 0:01:02.2]} 38... Kd5 {[%clk 0:01:19.8]} 39.
Bc5 {[%clk 0:01:01.6]} 39... a6 {[%clk 0:01:19.8]} 40. Ne5 {[%clk 0:00:51.6]}
40... Bd2 {[%clk 0:01:18.1]} 41. Nf7 {[%clk 0:00:50.2]} 41... Rc8 {[%clk
0:01:13.6]} 42. Nd6 {[%clk 0:00:50.2]} 42... Rc6 {[%clk 0:01:10.6]} 43. Ne8
{[%clk 0:00:45.1]} 43... Bxc3 {[%clk 0:01:09.9]} 44. Ke3 {[%clk 0:00:44.2]}
44... Re6+ {[%clk 0:01:09.7]} 45. Kd3 {[%clk 0:00:42.7]} 45... Rxe8 {[%clk
0:01:09.5]} 0-1

[Event "*** SCC Grand Prix: Titled Tuesday Blitz"]
[Site "Chess.com"]
[Date "2020.06.02"]
[Round "10"]
[White "econpower"]
[Black "TigrVShlyape"]
[Result "0-1"]
[WhiteElo "2646"]
[BlackElo "2872"]
[TimeControl "180+1"]
[EndTime "11:57:06 PDT"]
[Termination "TigrVShlyape won by resignation"]

1. c4 {[%clk 0:03:00.9]} 1... e5 {[%clk 0:02:58.8]} 2. g3 {[%clk 0:03:01.4]}
2... Nc6 {[%clk 0:02:58.6]} 3. Bg2 {[%clk 0:03:02.3]} 3... Bc5 {[%clk
0:02:58.8]} 4. Nc3 {[%clk 0:03:02.8]} 4... a6 {[%clk 0:02:58]} 5. e3 {[%clk
0:03:03]} 5... Nge7 {[%clk 0:02:58.2]} 6. Nge2 {[%clk 0:03:03.3]} 6... Ba7
{[%clk 0:02:58]} 7. O-O {[%clk 0:03:03.5]} 7... O-O {[%clk 0:02:57.6]} 8. d3
{[%clk 0:03:02.7]} 8... d6 {[%clk 0:02:57.6]} 9. Rb1 {[%clk 0:03:02.6]} 9... Rb8
{[%clk 0:02:56.8]} 10. h3 {[%clk 0:03:02.5]} 10... Be6 {[%clk 0:02:50.5]} 11.
Nd5 {[%clk 0:03:02.1]} 11... Qd7 {[%clk 0:02:47.9]} 12. Kh2 {[%clk 0:03:01.9]}
12... f6 {[%clk 0:02:47.3]} 13. f4 {[%clk 0:02:53.6]} 13... Bf7 {[%clk 0:02:44]}
14. Nec3 {[%clk 0:02:47.9]} 14... b5 {[%clk 0:02:40.7]} 15. b3 {[%clk
0:02:44.1]} 15... b4 {[%clk 0:02:37.3]} 16. Nxe7+ {[%clk 0:02:37]} 16... Nxe7
{[%clk 0:02:37.4]} 17. Nd5 {[%clk 0:02:36.9]} 17... Nxd5 {[%clk 0:02:10.5]} 18.
cxd5 {[%clk 0:02:36.5]} 18... Rb5 {[%clk 0:01:52.3]} 19. e4 {[%clk 0:02:18.7]}
19... c6 {[%clk 0:01:51.2]} 20. dxc6 {[%clk 0:02:18.5]} 20... Qxc6 {[%clk
0:01:51.1]} 21. Bd2 {[%clk 0:02:18.6]} 21... a5 {[%clk 0:01:47.5]} 22. Rc1
{[%clk 0:02:08.3]} 22... Rc5 {[%clk 0:01:42.8]} 23. Qg4 {[%clk 0:02:08]} 23...
h5 {[%clk 0:01:30.4]} 24. Qe2 {[%clk 0:02:03.2]} 24... Rc2 {[%clk 0:01:24.3]}
25. g4 {[%clk 0:01:11.5]} 25... h4 {[%clk 0:01:09.8]} 26. g5 {[%clk 0:01:09.7]}
26... fxg5 {[%clk 0:00:52.2]} 27. fxg5 {[%clk 0:01:09.4]} 27... Rxc1 {[%clk
0:00:48.3]} 28. Rxc1 {[%clk 0:00:52.6]} 28... Qb6 {[%clk 0:00:45.9]} 29. Be1
{[%clk 0:00:48.9]} 29... Qe3 {[%clk 0:00:43.2]} 30. Qxe3 {[%clk 0:00:45]} 30...
Bxe3 {[%clk 0:00:43]} 31. Rc6 {[%clk 0:00:45.9]} 31... Bxg5 {[%clk 0:00:43.1]}
32. Rxd6 {[%clk 0:00:46]} 32... Rc8 {[%clk 0:00:42.9]} 33. d4 {[%clk 0:00:45.3]}
33... Rc1 {[%clk 0:00:39.3]} 0-1